bitfinex/quotes_BTCUSD_20250825
["timestamp","ask_amount","ask_price","bid_price","bid_amount"]
[1756161440617,0.87868282,110680.0,110670.0,0.63062744]
[1756161440822,0.87670282,110680.0,110670.0,0.63365744]
[1756161441454,0.87868282,110680.0,110670.0,0.63365744]
[1756161441682,0.87868282,110680.0,110670.0,0.62855744]
[1756161442092,0.87868282,110680.0,110670.0,0.63365744]
[1756161442302,0.87868282,110680.0,110670.0,0.62855744]
[1756161442509,0.86454769,110680.0,110670.0,0.63365744]
[1756161443185,0.86454769,110680.0,110670.0,0.62855744]
[1756161444665,0.86256769,110680.0,110670.0,0.63365744]
[1756161445789,0.86256769,110680.0,110670.0,0.62465744]
[1756161446519,0.86256769,110680.0,110670.0,0.71152709]
[1756161446777,0.86256769,110680.0,110670.0,0.62465744]
[1756161447017,0.86454769,110680.0,110670.0,0.61955744]
[1756161447245,0.87868163,110680.0,110670.0,0.61955744]
[1756161447950,0.88177163,110680.0,110670.0,0.61947744]
[1756161448195,0.86763769,110680.0,110670.0,0.61947744]
[1756161448425,0.95450734,110680.0,110670.0,0.46247744]
[1756161448656,1.13520846,110680.0,110670.0,0.61955744]
[1756161449964,1.13520846,110680.0,110670.0,0.29076]
[1756161450196,1.13520846,110680.0,110670.0,0.23052]
[1756161450429,1.13520846,110680.0,110670.0,0.07352]
[1756161450659,1.14934399,110680.0,110670.0,0.2308]
[1756161451116,1.14934399,110680.0,110670.0,0.2298]
[1756161451615,1.14934399,110680.0,110670.0,0.2268]
[1756161451836,6.14934399,110680.0,110670.0,0.2288]
[1756161452063,6.14934399,110680.0,110670.0,0.2268]
[1756161452534,6.14934399,110680.0,110670.0,0.2278]
[1756161453215,6.13520846,110680.0,110670.0,0.2278]
[1756161453624,6.13620846,110680.0,110670.0,0.2278]
[1756161456112,6.13620846,110680.0,110670.0,0.001]
[1756161456331,6.13620846,110680.0,110670.0,0.15884]
[1756161456597,6.15034522,110680.0,110670.0,0.15884]
[1756161457083,6.17753122,110680.0,110670.0,0.15884]
[1756161457302,6.17753122,110680.0,110670.0,0.1588]
[1756161458014,6.17753122,110680.0,110670.0,0.001]
[1756161458245,6.17753122,110680.0,110670.0,0.15876]
[1756161458459,0.52073377,110660.0,110650.0,0.14205275]
[1756161458682,0.59595027,110660.0,110650.0,0.14205275]
[1756161458887,0.59595027,110660.0,110650.0,0.30009275]
[1756161459322,0.61008868,110660.0,110650.0,0.30009275]
[1756161459751,0.61008868,110660.0,110650.0,0.30209275]
[1756161459958,0.61008868,110660.0,110650.0,0.30221275]
[1756161460873,0.60700868,110660.0,110650.0,0.30321275]
[1756161461300,0.60700868,110660.0,110650.0,0.30221275]
[1756161461489,0.60700868,110660.0,110650.0,0.30021275]
[1756161461745,0.60700868,110660.0,110650.0,0.30121275]
[1756161462528,0.60700868,110660.0,110650.0,0.30021275]
[1756161462761,0.59287027,110660.0,110650.0,0.30021275]
[1756161462998,0.59287027,110660.0,110650.0,0.30121275]
[1756161463486,0.52272377,110660.0,110650.0,0.30653275]
[1756161463692,0.52272377,110660.0,110650.0,0.30121275]
[1756161464359,0.52272377,110660.0,110650.0,0.07052]
[1756161464564,0.52272377,110660.0,110650.0,0.22868]
[1756161464997,0.52272377,110660.0,110650.0,0.41158011]
[1756161465207,0.55546685,110660.0,110650.0,0.41475011]
[1756161465416,0.55546685,110660.0,110650.0,0.234]
[1756161465636,0.55546685,110660.0,110650.0,0.07052]
[1756161465843,0.55546685,110660.0,110650.0,0.23396]
[1756161466138,0.56960632,110660.0,110650.0,0.07052]
[1756161466319,0.57268632,110660.0,110650.0,0.22864]
[1756161466885,0.56960632,110660.0,110650.0,0.22864]
[1756161467557,0.56960632,110660.0,110650.0,0.07052]
[1756161467809,0.56960632,110660.0,110650.0,0.229]
[1756161468528,0.56960632,110660.0,110650.0,0.22896]
[1756161469019,0.56960632,110660.0,110650.0,0.07052]
[1756161469344,0.57268632,110660.0,110650.0,0.22896]
[1756161470298,0.56960632,110660.0,110650.0,0.22896]
[1756161470565,0.56960632,110660.0,110650.0,0.07052]
[1756161470768,0.57269632,110660.0,110650.0,0.22892]
[1756161471889,0.56960632,110660.0,110650.0,0.22892]
[1756161472816,0.57269632,110660.0,110650.0,0.22892]
[1756161473248,0.56960632,110660.0,110650.0,0.22892]
[1756161475706,0.56960632,110660.0,110650.0,0.21822486]
[1756161475913,0.56960632,110660.0,110650.0,0.21438794]
[1756161476497,0.58654082,110660.0,110650.0,0.21438794]
[1756161476808,0.58654082,110660.0,110650.0,0.05598794]
[1756161477026,5.58963082,110660.0,110650.0,0.15892]
[1756161479434,5.37107397,110660.0,110650.0,0.16413]
[1756161479643,5.55180774,110660.0,110650.0,0.16413]
[1756161480440,5.53487324,110660.0,110650.0,0.16413]
[1756161480647,5.55181521,110660.0,110650.0,0.16413]
[1756161481453,5.55181547,110660.0,110650.0,0.16413]
[1756161481790,5.63868512,110660.0,110650.0,0.16413]
[1756161482881,5.63868421,110660.0,110650.0,0.16413]
[1756161483329,5.64178421,110660.0,110650.0,0.15872]
[1756161483537,5.66897321,110660.0,110650.0,0.15872]
[1756161483748,5.66587321,110660.0,110650.0,0.15872]
[1756161483921,5.66587321,110660.0,110650.0,0.16071]
[1756161484130,5.66783321,110660.0,110650.0,0.16393]
[1756161484588,5.57900356,110660.0,110650.0,0.16393]
[1756161488991,5.57900147,110660.0,110650.0,0.16393]
[1756161489574,5.57900119,110660.0,110650.0,0.16393]
[1756161490386,5.58096119,110660.0,110650.0,0.16393]
[1756161490821,5.58096116,110660.0,110650.0,0.16393]
[1756161491039,5.66783081,110660.0,110650.0,0.16393]
[1756161492764,5.66783081,110660.0,110650.0,0.15872]
[1756161492977,5.66783081,110660.0,110650.0,0.16393]
[1756161493636,5.66587081,110660.0,110650.0,0.16393]
[1756161493845,5.66783081,110660.0,110650.0,0.16393]
[1756161494060,5.66587081,110660.0,110650.0,0.16393]
[1756161494829,5.66783081,110660.0,110650.0,0.16393]
[1756161497792,5.67093081,110660.0,110650.0,0.15812]
[1756161498027,5.64374181,110660.0,110650.0,0.15812]
[1756161498261,5.64374181,110660.0,110650.0,0.001]
[1756161498506,5.62680289,110660.0,110650.0,0.001]
[1756161498751,5.64374854,110660.0,110650.0,0.15816]
[1756161499894,5.65222223,110660.0,110650.0,0.15816]
[1756161500340,5.65222327,110660.0,110650.0,0.15816]
[1756161500990,5.67941227,110660.0,110650.0,0.15808]
[1756161501439,5.67941227,110660.0,110650.0,0.001]
[1756161501652,5.6652728,110660.0,110650.0,0.15848]
[1756161502511,0.18075011,110650.0,110640.0,0.06952]
[1756161502731,5.59364213,110650.0,110640.0,0.227]
[1756161502951,0.59674213,110650.0,110640.0,0.06952]
[1756161503165,5.62393313,110650.0,110640.0,0.227]
[1756161504078,5.62083313,110650.0,110640.0,0.227]
[1756161504525,5.62083313,110650.0,110640.0,0.228]
[1756161504743,5.60388748,110650.0,110640.0,0.228]
[1756161504975,0.04415408,110650.0,110640.0,0.41397644]
[1756161505211,0.1807312,110670.0,110660.0,0.18073377]
[1756161505421,5.02544828,110670.0,110660.0,0.34335377]
[1756161505626,0.016965,110670.0,110660.0,0.34335377]
[1756161506546,0.27242418,110670.0,110660.0,0.34335377]
[1756161506783,0.62656121,110670.0,110660.0,0.34335377]
[1756161507004,0.62856121,110670.0,110660.0,0.16262]
[1756161507227,0.62856121,110670.0,110660.0,0.34335377]
[1756161507507,0.62856121,110670.0,110660.0,0.16262]
[1756161507726,0.62856121,110670.0,110660.0,0.16362]
[1756161507952,0.61159621,110670.0,110660.0,0.16362]
[1756161508178,0.6285563,110670.0,110660.0,0.16362]
[1756161508390,0.44583886,110670.0,110660.0,0.34335377]
[1756161508601,0.44583721,110670.0,110660.0,0.34435377]
[1756161508809,0.44583721,110670.0,110660.0,0.34635377]
[1756161509239,0.62655465,110670.0,110660.0,0.34635377]
[1756161511318,0.37109283,110670.0,110660.0,0.34635377]
[1756161511519,0.37109283,110670.0,110660.0,0.33735377]
[1756161512277,0.3569558,110670.0,110660.0,0.33735377]
[1756161512485,0.53767324,110670.0,110660.0,0.33735377]
[1756161512892,0.53771324,110670.0,110660.0,0.33735377]
[1756161513090,5.62458289,110670.0,110660.0,0.16072]
[1756161513316,5.62458289,110670.0,110660.0,0.003]
[1756161513635,5.62458289,110670.0,110660.0,0.16072]
[1756161513879,5.53767324,110670.0,110660.0,0.1657]
[1756161514089,5.53771324,110670.0,110660.0,0.15872]
[1756161514239,5.54078324,110670.0,110660.0,0.15876]
[1756161514454,5.54078324,110670.0,110660.0,0.002]
[1756161514455,5.63613027,110670.0,110660.0,0.002]
[1756161514656,5.63613027,110670.0,110660.0,0.15876]
[1756161514831,5.63613027,110670.0,110660.0,0.1588]
[1756161515118,5.63613027,110670.0,110660.0,0.001]
[1756161515288,5.63613027,110670.0,110660.0,0.15876]
[1756161515490,5.65026867,110670.0,110660.0,0.15876]
[1756161516009,5.64856867,110670.0,110660.0,0.15876]
[1756161516781,5.67575667,110670.0,110660.0,0.15876]
[1756161517199,5.67675667,110670.0,110660.0,0.15876]
[1756161517414,5.67675667,110670.0,110660.0,0.15776]
[1756161517626,5.67675591,110670.0,110660.0,0.15776]
[1756161518858,5.67368591,110670.0,110660.0,0.15776]
[1756161519551,5.33538591,110670.0,110660.0,0.15776]
[1756161519758,5.24851626,110670.0,110660.0,0.15974]
[1756161519969,5.24851626,110670.0,110660.0,0.15776]
[1756161520197,5.25161626,110670.0,110660.0,0.15776]
[1756161521064,5.25161626,110670.0,110660.0,0.16274]
[1756161521065,5.24847626,110670.0,110660.0,0.16274]
[1756161521530,5.58847626,110670.0,110660.0,0.16274]
[1756161521741,5.58847626,110670.0,110660.0,0.41600652]
[1756161521742,0.39928135,110670.0,110660.0,0.41600652]
[1756161521955,0.0151384,110670.0,110660.0,0.41600652]
[1756161522385,0.3551384,110670.0,110660.0,0.41600652]
[1756161522655,0.73045198,110680.0,110670.0,0.18071744]
[1756161522876,6.09587773,110680.0,110670.0,0.25221744]
[1756161523091,6.09587773,110680.0,110670.0,0.25521744]
[1756161523969,0.54799201,110680.0,110670.0,0.25521744]
[1756161524220,0.53951676,110680.0,110670.0,0.25521744]
[1756161524898,0.87951676,110680.0,110670.0,0.25521744]
[1756161525315,0.87951676,110680.0,110670.0,0.25721744]
[1756161525738,0.87951676,110680.0,110670.0,0.26021744]
[1756161525966,0.8936533,110680.0,110670.0,0.41749744]
[1756161526438,0.8936533,110680.0,110670.0,0.26021744]
[1756161526683,0.98052295,110680.0,110670.0,0.41741744]
[1756161526919,0.96357388,110680.0,110670.0,0.41741744]
[1756161527139,0.98051334,110680.0,110670.0,0.41741744]
[1756161527367,0.89364369,110680.0,110670.0,0.41741744]
[1756161529413,0.87670423,110680.0,110670.0,0.41741744]
[1756161531649,1.05740535,110680.0,110670.0,0.26021744]
[1756161531862,1.05740535,110680.0,110670.0,0.41745744]
[1756161532081,1.05937535,110680.0,110670.0,0.41745744]
[1756161532303,1.07433852,110680.0,110670.0,0.41745744]
[1756161532526,1.16120817,110680.0,110670.0,0.41745744]
[1756161532735,1.16317817,110680.0,110670.0,0.41745744]
[1756161534038,1.16120817,110680.0,110670.0,0.41745744]
[1756161534747,0.8936374,110680.0,110670.0,0.41745744]
[1756161536638,0.87670423,110680.0,110670.0,0.41745744]
[1756161537077,0.87670423,110680.0,110670.0,0.26021744]
[1756161537290,1.05938535,110680.0,110670.0,0.41219744]
[1756161538402,1.05938535,110680.0,110670.0,0.41414744]
[1756161538609,0.87868423,110680.0,110670.0,0.41725744]
[1756161538821,0.87670423,110680.0,110670.0,0.41725744]
[1756161541432,0.53670423,110680.0,110670.0,0.41725744]
[1756161541907,0.52256769,110680.0,110670.0,0.41725744]
[1756161542354,0.52256769,110680.0,110670.0,0.44243244]
[1756161542575,0.52256769,110680.0,110670.0,0.43947244]
[1756161542794,0.52256769,110680.0,110670.0,0.28747244]
[1756161543025,0.52256769,110680.0,110670.0,0.44439244]
[1756161543905,0.52256769,110680.0,110670.0,0.44639244]
[1756161544963,0.51995241,110680.0,110670.0,0.44639244]
[1756161545446,0.53408856,110680.0,110670.0,0.44639244]
[1756161545727,0.51995241,110680.0,110670.0,0.44639244]
[1756161548659,0.31179297,110680.0,110670.0,0.44639244]
[1756161549251,0.3259291,110680.0,110670.0,0.44639244]
[1756161549662,0.3259291,110680.0,110670.0,0.50910506]
[1756161550699,0.31820962,110680.0,110670.0,1.08519358]
[1756161551106,0.31820962,110680.0,110670.0,0.61343883]
[1756161551682,0.31820962,110680.0,110670.0,0.60643883]
[1756161551889,0.31820962,110680.0,110670.0,0.61243883]
[1756161553298,0.31820962,110680.0,110670.0,0.61543883]
[1756161553827,0.30407349,110680.0,110670.0,0.61543883]
[1756161555199,0.30407349,110680.0,110670.0,1.01543883]
[1756161555946,0.00341709,110700.0,110690.0,0.19813381]
[1756161556147,0.00346475,110700.0,110690.0,0.61180589]
[1756161556325,0.00346475,110700.0,110690.0,0.61491589]
[1756161556676,0.00346475,110700.0,110690.0,0.64208489]
[1756161557116,0.01759745,110700.0,110690.0,0.64308489]
[1756161557537,0.01759745,110700.0,110690.0,0.64608489]
[1756161557999,0.01759745,110700.0,110690.0,0.48948489]
[1756161558210,0.01759745,110700.0,110690.0,0.64608489]
[1756161561287,0.01759745,110700.0,110690.0,0.48948489]
[1756161561501,0.01759745,110700.0,110690.0,0.64608489]
[1756161563273,0.01759745,110700.0,110690.0,0.73296964]
[1756161563451,0.00346475,110700.0,110690.0,0.73296964]
[1756161563656,0.00346475,110700.0,110690.0,0.57636964]
[1756161563860,0.00346475,110700.0,110690.0,0.73296964]
[1756161564199,0.00346475,110700.0,110690.0,0.73196964]
[1756161564407,0.00346475,110700.0,110690.0,0.73096964]
[1756161564690,0.00346475,110700.0,110690.0,0.73696964]
[1756161565607,0.00346475,110700.0,110690.0,0.58036964]
[1756161565816,0.00346475,110700.0,110690.0,0.73692964]
[1756161566044,0.00346475,110700.0,110690.0,0.73492964]
[1756161566505,0.00346475,110700.0,110690.0,0.73792964]
[1756161567752,0.00346475,110700.0,110690.0,0.58136964]
[1756161567968,0.00346475,110700.0,110690.0,0.73792964]
[1756161569085,0.00346475,110700.0,110690.0,1.00662964]
[1756161571331,0.00346475,110700.0,110690.0,1.47838439]
[1756161571573,0.00346475,110700.0,110690.0,1.62838439]
[1756161571795,0.00346475,110700.0,110690.0,2.02838439]
[1756161572309,0.00346475,110700.0,110690.0,1.55662964]
[1756161572558,0.00346475,110700.0,110690.0,1.13136964]
[1756161572800,0.00346475,110700.0,110690.0,1.28856964]
[1756161573016,0.00346475,110700.0,110690.0,1.55426964]
[1756161573237,0.00346475,110700.0,110690.0,1.28256964]
[1756161573445,0.00346475,110700.0,110690.0,1.28956964]
[1756161576134,0.00346475,110700.0,110690.0,1.28056964]
[1756161583193,0.01433048,110710.0,110700.0,0.18066847]
[1756161583386,0.01433048,110710.0,110700.0,0.51327145]
[1756161583667,0.01433048,110710.0,110700.0,0.51849145]
[1756161583870,0.01433048,110710.0,110700.0,0.53282145]
[1756161584317,0.01433048,110710.0,110700.0,0.37574145]
[1756161584531,0.01433048,110710.0,110700.0,0.53278145]
[1756161584995,0.01433048,110710.0,110700.0,0.37574145]
[1756161585194,0.01433048,110710.0,110700.0,0.77574145]
[1756161585411,0.01631048,110710.0,110700.0,0.93266145]
[1756161585620,0.01631048,110710.0,110700.0,0.93866145]
[1756161585842,0.01433048,110710.0,110700.0,0.94166145]
[1756161587798,0.01433048,110710.0,110700.0,0.54166145]
[1756161591278,0.0002,110710.0,110700.0,0.54166145]
[1756161591546,0.0002,110710.0,110700.0,0.58309722]
[1756161591975,0.0002,110710.0,110700.0,0.98309722]
[1756161595120,0.0002,110710.0,110700.0,1.45485197]
[1756161595345,0.0002,110710.0,110700.0,1.29793197]
[1756161595594,0.0002,110710.0,110700.0,0.98281722]
[1756161601046,0.0002,110710.0,110700.0,0.97981722]
[1756161601294,0.0002,110710.0,110700.0,1.45157197]
[1756161601527,0.0002,110710.0,110700.0,1.45457197]
[1756161601993,0.0002,110710.0,110700.0,1.44549197]
[1756161602221,0.0002,110710.0,110700.0,1.44849197]
[1756161602518,0.0002,110710.0,110700.0,1.45549197]
[1756161602789,0.0002,110710.0,110700.0,0.98373722]
[1756161603822,0.34,110750.0,110740.0,0.18060321]
[1756161604068,0.34028,110750.0,110740.0,0.42302356]
[1756161604299,0.34075696,110750.0,110740.0,0.40496324]
[1756161605428,0.34075696,110750.0,110740.0,0.24840324]
[1756161605649,0.35341627,110750.0,110740.0,0.40496324]
[1756161605837,0.35358627,110750.0,110740.0,0.40696324]
[1756161607248,0.53417317,110750.0,110740.0,0.40692324]
[1756161607478,0.35358627,110750.0,110740.0,0.40692324]
[1756161609725,0.35358627,110750.0,110740.0,0.25040324]
[1756161610048,0.53417317,110750.0,110740.0,0.25040324]
[1756161610279,0.53417317,110750.0,110740.0,0.40692324]
[1756161610534,0.35358627,110750.0,110740.0,0.40692324]
[1756161611337,0.36771404,110750.0,110740.0,0.40692324]
[1756161611779,0.54830094,110750.0,110740.0,0.40692324]
[1756161612004,0.54813094,110750.0,110740.0,0.40692324]
[1756161612246,0.36754404,110750.0,110740.0,0.40692324]
[1756161613964,0.36754404,110750.0,110740.0,0.41015324]
[1756161614182,0.36754404,110750.0,110740.0,0.40692324]
[1756161615913,0.36726404,110750.0,110740.0,0.41231324]
[1756161616134,0.36754404,110750.0,110740.0,0.40692324]
[1756161617153,0.02754404,110750.0,110740.0,0.40692324]
[1756161617371,0.02726404,110750.0,110740.0,0.49678202]
[1756161617579,0.01313627,110750.0,110740.0,0.52394202]
[1756161618414,0.01313627,110750.0,110740.0,0.52194202]
[1756161618863,0.00047696,110750.0,110740.0,0.54439104]
[1756161619067,0.00047696,110750.0,110740.0,0.54639104]
[1756161619269,0.00047696,110750.0,110740.0,0.61892379]
[1756161620525,0.00047696,110750.0,110740.0,0.61692379]
[1756161620939,0.01460193,110750.0,110740.0,0.61692379]
[1756161621567,0.01460193,110750.0,110740.0,0.61192379]
[1756161621817,0.01460193,110750.0,110740.0,0.62092379]
[1756161622262,0.01460193,110750.0,110740.0,0.61192379]
[1756161622504,0.01460193,110750.0,110740.0,0.61892379]
[1756161622714,0.01460193,110750.0,110740.0,0.62192379]
[1756161624351,0.01460193,110750.0,110740.0,1.18056329]
[1756161624579,0.00047696,110750.0,110740.0,1.18056329]
[1756161624806,8e-05,110770.0,110760.0,0.1805706]
[1756161625044,0.00022299,110770.0,110760.0,0.37278554]
[1756161625523,0.00022299,110770.0,110760.0,0.37951654]
[1756161626684,0.00022299,110770.0,110760.0,0.38551654]
[1756161627118,3.32884085,110810.0,110790.0,0.1805217]
[1756161627337,5.00028,110800.0,110790.0,0.19967993]
[1756161627574,0.02582703,110800.0,110790.0,0.42559993]
[1756161627790,0.02565703,110800.0,110790.0,0.42559993]
[1756161628422,0.04807362,110800.0,110790.0,0.42659993]
[1756161628649,0.0311556,110800.0,110790.0,0.42559993]
[1756161628876,0.0311556,110800.0,110790.0,0.42759993]
[1756161629100,0.0311556,110800.0,110790.0,0.42559993]
[1756161629321,0.04806864,110800.0,110790.0,0.2499617]
[1756161629539,0.03132303,110800.0,110790.0,0.4094417]
[1756161629837,0.03115303,110800.0,110790.0,0.4094417]
[1756161630071,0.03115168,110800.0,110790.0,0.4104417]
[1756161630294,0.37115057,110800.0,110790.0,0.4104417]
[1756161630507,0.37115057,110800.0,110790.0,0.49427377]
[1756161630727,0.03115057,110800.0,110790.0,0.49427377]
[1756161631288,0.03114964,110800.0,110790.0,0.49427377]
[1756161632014,0.03114964,110800.0,110790.0,0.33779377]
[1756161632224,0.03114964,110800.0,110790.0,0.49634377]
[1756161632407,0.02269659,110800.0,110790.0,0.49427377]
[1756161632541,0.02269659,110800.0,110790.0,0.52142077]
[1756161632743,0.02241659,110800.0,110790.0,0.52660077]
[1756161632993,3.12615621,110810.0,110790.0,0.52660077]
[1756161632994,3.46615621,110810.0,110800.0,0.18050541]
[1756161633206,3.49179171,110810.0,110800.0,0.20030035]
[1756161633841,3.47767039,110810.0,110800.0,0.20341035]
[1756161634054,3.47767039,110810.0,110800.0,0.20548035]
[1756161634055,3.12076675,110810.0,110800.0,0.20548035]
[1756161634468,3.12076675,110810.0,110800.0,0.23262635]
[1756161634671,3.12076675,110810.0,110800.0,0.23462635]
[1756161634872,3.12048675,110810.0,110800.0,0.23462635]
[1756161635274,3.14323227,110810.0,110800.0,0.23462635]
[1756161635487,3.14295227,110810.0,110800.0,0.23462635]
[1756161635694,3.14323227,110810.0,110800.0,0.23255635]
[1756161635892,3.13478041,110810.0,110800.0,0.22944635]
[1756161636888,3.13478041,110810.0,110800.0,0.38704635]
[1756161637358,3.13478041,110810.0,110800.0,0.38692635]
[1756161637879,3.13450041,110810.0,110800.0,0.39210635]
[1756161638303,3.14889974,110810.0,110800.0,0.39210635]
[1756161640073,3.14889974,110810.0,110800.0,0.20965141]
[1756161640277,3.14889974,110810.0,110800.0,0.36705141]
[1756161640517,3.14889974,110810.0,110800.0,0.20965141]
[1756161640755,3.14889974,110810.0,110800.0,0.36705141]
[1756161641122,3.14889974,110810.0,110800.0,0.40870593]
[1756161641725,3.14889974,110810.0,110800.0,0.25130593]
[1756161641925,3.14889974,110810.0,110800.0,0.40870593]
[1756161642130,3.14889974,110810.0,110800.0,0.39970593]
[1756161642330,3.14889974,110810.0,110800.0,0.35805141]
[1756161642555,3.14861974,110810.0,110800.0,0.36323141]
[1756161642763,3.14889974,110810.0,110800.0,0.42455072]
[1756161642968,3.14861974,110810.0,110800.0,0.42455072]
[1756161647735,3.14861974,110810.0,110800.0,0.42555072]
[1756161647915,3.14861974,110810.0,110800.0,0.42355072]
[1756161648124,3.14861974,110810.0,110800.0,0.42555072]
[1756161648326,3.14861974,110810.0,110800.0,0.42355072]
[1756161648732,3.14861974,110810.0,110800.0,0.42655072]
[1756161649129,3.14889974,110810.0,110800.0,0.26708072]
[1756161649355,3.14889974,110810.0,110800.0,0.35977141]
[1756161649563,3.14889974,110810.0,110800.0,0.35985141]
[1756161650255,3.14889974,110810.0,110800.0,0.36296141]
[1756161651775,3.14889974,110810.0,110800.0,0.35985141]
[1756161651979,3.14889974,110810.0,110800.0,0.35977141]
[1756161653112,3.14889974,110810.0,110800.0,0.43026415]
[1756161653320,3.14889974,110810.0,110800.0,0.20576141]
[1756161653525,3.14889974,110810.0,110800.0,0.35965141]
[1756161654929,3.14889974,110810.0,110800.0,0.20265141]
[1756161655149,3.14889974,110810.0,110800.0,0.35957141]
[1756161655575,3.14861974,110810.0,110800.0,0.36488141]
[1756161655785,3.14861974,110810.0,110800.0,0.43039415]
[1756161655995,3.14889974,110810.0,110800.0,0.43039415]
[1756161656918,3.14889974,110810.0,110800.0,0.42823415]
[1756161658455,3.14861974,110810.0,110800.0,0.42724415]
[1756161658668,3.14861974,110810.0,110800.0,0.43039415]
[1756161658882,3.14861974,110810.0,110800.0,0.27347415]
[1756161659070,3.14861974,110810.0,110800.0,0.43035415]
[1756161659638,3.14889974,110810.0,110800.0,0.43035415]
[1756161660402,3.14889974,110810.0,110800.0,0.20265141]
[1756161660622,3.14889974,110810.0,110800.0,0.35953141]
[1756161660861,3.14861974,110810.0,110800.0,0.36484141]
[1756161661073,3.14861974,110810.0,110800.0,0.36268141]
[1756161661074,3.14889974,110810.0,110800.0,0.36268141]
[1756161661293,3.15735284,110810.0,110800.0,0.20580141]
[1756161661515,3.14323351,110810.0,110800.0,0.35945141]
[1756161661750,3.14323351,110810.0,110800.0,0.40905615]
[1756161661968,3.14323351,110810.0,110800.0,0.35945141]
[1756161662229,3.14323351,110810.0,110800.0,0.43729416]
[1756161662436,3.14323351,110810.0,110800.0,0.35945141]
[1756161663097,3.14323351,110810.0,110800.0,0.36260141]
[1756161663367,3.66389263,110810.0,110800.0,0.031146]
[1756161663587,3.68081771,110810.0,110800.0,0.16092]
[1756161663812,3.68064771,110810.0,110800.0,0.34142541]
[1756161664034,3.68064771,110810.0,110800.0,0.16092]
[1756161664930,3.69476828,110810.0,110800.0,0.16092]
[1756161665151,3.69476828,110810.0,110800.0,0.34457541]
[1756161665373,3.69476828,110810.0,110800.0,0.16092]
[1756161665819,3.69476828,110810.0,110800.0,0.34142541]
[1756161666473,3.69480899,110810.0,110800.0,0.34142541]
[1756161667028,3.51403987,110810.0,110800.0,0.34673541]
[1756161668252,3.27263157,110810.0,110800.0,0.34673541]
[1756161670234,2.93263157,110810.0,110800.0,0.34673541]
[1756161671320,2.91568214,110810.0,110800.0,0.34673541]
[1756161671550,2.91568214,110810.0,110800.0,0.41365822]
[1756161671814,2.91568214,110810.0,110800.0,0.34673541]
[1756161672044,2.93290103,110810.0,110800.0,0.34673541]
[1756161672251,2.90749268,110810.0,110800.0,0.34457541]
[1756161672487,2.90749268,110810.0,110800.0,0.34673541]
[1756161672690,2.90749268,110810.0,110800.0,0.34457541]
[1756161673150,3.09645119,110810.0,110800.0,0.34457541]
[1756161673381,3.0879818,110810.0,110800.0,0.34122541]
[1756161674412,3.17502145,110810.0,110800.0,0.16084]
[1756161674661,3.45356061,110810.0,110800.0,0.16084]
[1756161674877,3.45339061,110810.0,110800.0,0.16084]
[1756161675330,3.45356061,110810.0,110800.0,0.16084]
[1756161675561,3.45356061,110810.0,110800.0,0.15984]
[1756161676024,3.45355923,110810.0,110800.0,0.15984]
[1756161676463,3.45338923,110810.0,110800.0,0.20082001]
[1756161676716,3.45338923,110810.0,110800.0,0.19782001]
[1756161677170,3.45338923,110810.0,110800.0,0.19982001]
[1756161677399,3.4279818,110810.0,110800.0,0.15884]
[1756161678910,3.40239898,110810.0,110800.0,0.15884]
[1756161681851,3.40239898,110810.0,110800.0,0.002]
[1756161682153,3.40239898,110810.0,110800.0,0.15924]
[1756161683032,3.40239898,110810.0,110800.0,0.002]
[1756161683306,3.40239898,110810.0,110800.0,0.15928]
[1756161684851,8.48943863,110810.0,110800.0,0.002]
[1756161685069,8.54199631,110810.0,110800.0,0.15908]
[1756161685278,8.51093995,110810.0,110800.0,0.15908]
[1756161685497,8.41543241,110810.0,110800.0,0.15908]
[1756161685710,8.41560241,110810.0,110800.0,0.15908]
[1756161685917,8.41543241,110810.0,110800.0,0.15908]
[1756161686562,8.41543241,110810.0,110800.0,0.15708]
[1756161686990,8.41543241,110810.0,110800.0,0.15808]
[1756161687256,8.41560241,110810.0,110800.0,0.15808]
[1756161687596,8.44099844,110810.0,110800.0,0.15808]
[1756161688319,8.45512025,110810.0,110800.0,0.15808]
[1756161688758,8.45512025,110810.0,110800.0,0.001]
[1756161689204,8.45512025,110810.0,110800.0,0.15804]
[1756161691007,8.45495025,110810.0,110800.0,0.15804]
[1756161691475,8.45495025,110810.0,110800.0,0.15808]
[1756161691725,8.45512025,110810.0,110800.0,0.15808]
[1756161691956,8.5419899,110810.0,110800.0,0.15808]
[1756161692683,8.5419899,110810.0,110800.0,0.001]
[1756161692940,8.45512025,110810.0,110800.0,0.001]
[1756161693192,8.48170692,110810.0,110800.0,0.158]
[1756161693418,8.45467025,110810.0,110800.0,0.158]
[1756161693636,8.45467025,110810.0,110800.0,1e-08]
[1756161693637,8.71646892,110810.0,110800.0,1e-08]
[1756161693874,8.74230123,110810.0,110800.0,1e-08]
[1756161694324,8.8693379,110810.0,110800.0,1e-08]
[1756161694540,0.180538,110780.0,110770.0,0.06944]
[1756161694780,0.180538,110780.0,110770.0,0.09448]
[1756161695010,5.180538,110780.0,110770.0,0.09448]
[1756161695252,5.180538,110780.0,110770.0,0.11118127]
[1756161695694,5.180538,110780.0,110770.0,0.09448]
[1756161695936,5.207696,110780.0,110770.0,0.09448]
[1756161696593,0.207696,110780.0,110770.0,0.09448]
[1756161696807,0.207696,110780.0,110770.0,0.09548]
[1756161697219,0.22182048,110780.0,110770.0,0.09548]
[1756161697392,0.22182048,110780.0,110770.0,0.13033825]
[1756161697617,0.22182048,110780.0,110770.0,0.09548]
[1756161698049,0.22182048,110780.0,110770.0,0.07044]
[1756161698257,5.22210048,110780.0,110770.0,0.22788]
[1756161698475,5.56210048,110780.0,110770.0,0.22788]
[1756161698868,5.56210048,110780.0,110770.0,0.2278]
[1756161699110,5.64897013,110780.0,110770.0,0.2278]
[1756161699727,5.56210048,110780.0,110770.0,0.2278]
[1756161700664,5.56210048,110780.0,110770.0,0.23275]
[1756161700880,5.56210048,110780.0,110770.0,0.2278]
[1756161701551,5.38156248,110780.0,110770.0,0.4133043]
[1756161701772,5.56210048,110780.0,110770.0,0.4133043]
[1756161704878,5.38156248,110780.0,110770.0,0.4133043]
[1756161705795,5.38128248,110780.0,110770.0,0.4133043]
[1756161706561,5.56182048,110780.0,110770.0,0.4133043]
[1756161706987,5.38128248,110780.0,110770.0,0.4133043]
[1756161708069,0.38128248,110780.0,110770.0,0.4133043]
[1756161708274,0.367158,110780.0,110770.0,0.4133043]
[1756161709788,0.367438,110780.0,110770.0,0.4133043]
[1756161710006,0.547976,110780.0,110770.0,0.4077143]
[1756161710214,0.547976,110780.0,110770.0,0.4126643]
[1756161710448,0.547976,110780.0,110770.0,0.4106843]
[1756161710663,5.547976,110780.0,110770.0,0.22716]
[1756161711277,5.547976,110780.0,110770.0,0.4077143]
[1756161712529,5.56210216,110780.0,110770.0,0.4077143]
[1756161712958,5.56210216,110780.0,110770.0,0.22716]